[Event "*** Titled Tuesday Blitz"]
[Site "Chess.com"]
[Date "2021.02.09"]
[Round "4"]
[White "Kotofeyca"]
[Black "GoltsevDmitry2000"]
[Result "1/2-1/2"]
[WhiteElo "2440"]
[BlackElo "2715"]
[TimeControl "180+1"]
[EndTime "10:39:41 PST"]
[Termination "Game drawn by repetition"]

1. d4 {[%clk 0:01:57.7]} 1... Nf6 {[%clk 0:02:58.9]} 2. c4 {[%clk 0:01:56.2]}
2... e6 {[%clk 0:02:58.8]} 3. Nf3 {[%clk 0:01:55.9]} 3... Bb4+ {[%clk
0:02:58.2]} 4. Nbd2 {[%clk 0:01:54.9]} 4... b6 {[%clk 0:02:53.4]} 5. a3 {[%clk
0:01:55.1]} 5... Bxd2+ {[%clk 0:02:51.5]} 6. Bxd2 {[%clk 0:01:56]} 6... Bb7
{[%clk 0:02:49.4]} 7. Bg5 {[%clk 0:01:56.5]} 7... d6 {[%clk 0:02:47.8]} 8. e3
{[%clk 0:01:55.1]} 8... Nbd7 {[%clk 0:02:45.7]} 9. Be2 {[%clk 0:01:52.9]} 9...
h6 {[%clk 0:02:36.9]} 10. Bh4 {[%clk 0:01:53]} 10... Qe7 {[%clk 0:02:27.4]} 11.
O-O {[%clk 0:01:52.2]} 11... g5 {[%clk 0:02:23.2]} 12. Bg3 {[%clk 0:01:51.5]}
12... Ne4 {[%clk 0:02:20.2]} 13. Nd2 {[%clk 0:01:50.6]} 13... Nxg3 {[%clk
0:02:15.8]} 14. fxg3 {[%clk 0:01:50.6]} 14... O-O {[%clk 0:02:12.3]} 15. Bf3
{[%clk 0:01:48.2]} 15... Bxf3 {[%clk 0:02:07.4]} 16. Qxf3 {[%clk 0:01:37.9]}
16... f5 {[%clk 0:02:00.9]} 17. g4 {[%clk 0:01:37.7]} 17... Nf6 {[%clk 0:01:56]}
18. gxf5 {[%clk 0:01:30.8]} 18... exf5 {[%clk 0:01:56.3]} 19. Rae1 {[%clk
0:01:08.4]} 19... Ne4 {[%clk 0:01:19.7]} 20. Nxe4 {[%clk 0:01:08]} 20... fxe4
{[%clk 0:01:16.7]} 21. Qh5 {[%clk 0:00:58.9]} 21... Kg7 {[%clk 0:01:15.5]} 22.
Rxf8 {[%clk 0:00:46.5]} 22... Rxf8 {[%clk 0:01:16.4]} 23. Rf1 {[%clk 0:00:46.9]}
23... Rxf1+ {[%clk 0:01:11.3]} 24. Kxf1 {[%clk 0:00:47.8]} 24... c5 {[%clk
0:01:11.6]} 25. dxc5 {[%clk 0:00:44.4]} 25... dxc5 {[%clk 0:01:03.9]} 26. Qd1
{[%clk 0:00:34.8]} 26... Qf7+ {[%clk 0:00:58.4]} 27. Ke1 {[%clk 0:00:34.7]}
27... Qxc4 {[%clk 0:00:57.8]} 28. Qd7+ {[%clk 0:00:34.4]} 28... Qf7 {[%clk
0:00:58.1]} 29. Qd6 {[%clk 0:00:29]} 29... Qf6 {[%clk 0:00:57.5]} 30. Qd7+
{[%clk 0:00:26.5]} 30... Qf7 {[%clk 0:00:47.6]} 31. Qd6 {[%clk 0:00:25]} 31...
Qf6 {[%clk 0:00:37.1]} 32. Qd7+ {[%clk 0:00:24.7]} 32... Kg6 {[%clk 0:00:21.6]}
33. Qe8+ {[%clk 0:00:24.8]} 33... Kf5 {[%clk 0:00:21.2]} 34. Qd7+ {[%clk
0:00:22.6]} 34... Ke5 {[%clk 0:00:17.1]} 35. Qxa7 {[%clk 0:00:21]} 35... Kd5
{[%clk 0:00:17.5]} 36. Qd7+ {[%clk 0:00:20.3]} 36... Kc4 {[%clk 0:00:16.9]} 37.
Qa4+ {[%clk 0:00:19.1]} 37... Kd5 {[%clk 0:00:11.1]} 38. Qd7+ {[%clk 0:00:18.9]}
38... Ke5 {[%clk 0:00:10.6]} 39. Qc7+ {[%clk 0:00:17.7]} 39... Kf5 {[%clk
0:00:10.1]} 40. Qh7+ {[%clk 0:00:17.2]} 40... Ke5 {[%clk 0:00:07.9]} 41. Qc7+
{[%clk 0:00:16.3]} 41... Kd5 {[%clk 0:00:07.5]} 42. Qd7+ {[%clk 0:00:15.2]}
1/2-1/2

[Event "*** Titled Tuesday Blitz"]
[Site "Chess.com"]
[Date "2021.02.09"]
[Round "4"]
[White "lamomiablanca"]
[Black "jens1102"]
[Result "0-1"]
[WhiteElo "2270"]
[BlackElo "2459"]
[TimeControl "180+1"]
[EndTime "10:39:43 PST"]
[Termination "jens1102 won by resignation"]

1. e4 {[%clk 0:03:00.9]} 1... e5 {[%clk 0:02:58]} 2. Nf3 {[%clk 0:03:00.7]} 2...
Nc6 {[%clk 0:02:58.6]} 3. Nc3 {[%clk 0:03:00.8]} 3... Nf6 {[%clk 0:02:58.6]} 4.
d4 {[%clk 0:03:00.7]} 4... exd4 {[%clk 0:02:59.1]} 5. Nxd4 {[%clk 0:03:01.6]}
5... Nxe4 {[%clk 0:02:58.4]} 6. Nxe4 {[%clk 0:02:42.9]} 6... Qe7 {[%clk
0:02:58.3]} 7. f3 {[%clk 0:02:41.6]} 7... d5 {[%clk 0:02:39.2]} 8. Bb5 {[%clk
0:02:40.4]} 8... Bd7 {[%clk 0:02:28.3]} 9. Bxc6 {[%clk 0:02:32.7]} 9... bxc6
{[%clk 0:02:25.1]} 10. O-O {[%clk 0:02:31.4]} 10... dxe4 {[%clk 0:02:25.4]} 11.
fxe4 {[%clk 0:02:19.2]} 11... g6 {[%clk 0:02:12.7]} 12. e5 {[%clk 0:01:57.9]}
12... Bg7 {[%clk 0:02:09.1]} 13. e6 {[%clk 0:01:53.6]} 13... fxe6 {[%clk
0:02:05.5]} 14. c3 {[%clk 0:01:44.2]} 14... c5 {[%clk 0:01:46.8]} 15. Ne2 {[%clk
0:01:33.6]} 15... Bb5 {[%clk 0:01:43.6]} 16. Be3 {[%clk 0:01:27.8]} 16... Rd8
{[%clk 0:01:35.1]} 17. Qe1 {[%clk 0:01:26.5]} 17... Rd3 {[%clk 0:01:34.3]} 18.
Nf4 {[%clk 0:01:11.1]} 18... Rxe3 {[%clk 0:01:16.9]} 19. Qxe3 {[%clk 0:01:10]}
19... Bxf1 {[%clk 0:01:17.5]} 20. Rxf1 {[%clk 0:01:10.6]} 20... Bh6 {[%clk
0:01:12.5]} 21. Qe5 {[%clk 0:00:56.5]} 21... O-O {[%clk 0:00:42.7]} 22. Rf3
{[%clk 0:00:15.1]} 22... Bxf4 {[%clk 0:00:31.6]} 23. Rxf4 {[%clk 0:00:13.9]}
23... Rxf4 {[%clk 0:00:32.5]} 24. Qxf4 {[%clk 0:00:14.6]} 24... Qd6 {[%clk
0:00:33.2]} 25. Qe3 {[%clk 0:00:09.3]} 25... Qd1+ {[%clk 0:00:33.2]} 26. Kf2
{[%clk 0:00:09.1]} 26... Qd5 {[%clk 0:00:34.1]} 27. b3 {[%clk 0:00:07.7]} 27...
a5 {[%clk 0:00:33.3]} 28. c4 {[%clk 0:00:08]} 28... Qd4 {[%clk 0:00:32.6]} 29.
Qxd4 {[%clk 0:00:06.2]} 29... cxd4 {[%clk 0:00:32.8]} 30. Kf3 {[%clk 0:00:05.6]}
30... Kf7 {[%clk 0:00:30.4]} 31. Ke4 {[%clk 0:00:06.1]} 31... e5 {[%clk
0:00:26.9]} 32. a3 {[%clk 0:00:05.7]} 32... c5 {[%clk 0:00:26.8]} 33. g4 {[%clk
0:00:03.4]} 33... Ke7 {[%clk 0:00:22.9]} 34. h4 {[%clk 0:00:03.7]} 34... Kf6
{[%clk 0:00:21.8]} 35. Kd3 {[%clk 0:00:03.8]} 35... h5 {[%clk 0:00:21.4]} 36.
gxh5 {[%clk 0:00:02.2]} 36... gxh5 {[%clk 0:00:22.3]} 37. Ke4 {[%clk 0:00:02.9]}
37... Ke6 {[%clk 0:00:22.4]} 38. Kd3 {[%clk 0:00:03.1]} 38... Kf5 {[%clk
0:00:22.1]} 39. Kd2 {[%clk 0:00:01.9]} 39... e4 {[%clk 0:00:22.1]} 40. Ke2
{[%clk 0:00:02]} 40... Kf4 {[%clk 0:00:20.4]} 41. Kf2 {[%clk 0:00:02.4]} 41...
e3+ {[%clk 0:00:20.6]} 42. Ke2 {[%clk 0:00:02.5]} 42... Ke4 {[%clk 0:00:21.5]}
43. Ke1 {[%clk 0:00:01.8]} 43... d3 {[%clk 0:00:21.7]} 44. Kd1 {[%clk
0:00:02.5]} 44... Kd4 {[%clk 0:00:22.3]} 45. Ke1 {[%clk 0:00:03]} 45... Kc3
{[%clk 0:00:23]} 46. Kd1 {[%clk 0:00:03.5]} 46... Kxb3 {[%clk 0:00:23.4]} 0-1

[Event "*** Titled Tuesday Blitz"]
[Site "Chess.com"]
[Date "2021.02.09"]
[Round "4"]
[White "GelmanAlexander"]
[Black "RD4ever"]
[Result "0-1"]
[WhiteElo "2602"]
[BlackElo "2852"]
[TimeControl "180+1"]
[EndTime "10:39:44 PST"]
[Termination "RD4ever won on time"]

1. d4 {[%clk 0:03:00.9]} 1... Nf6 {[%clk 0:02:58.1]} 2. Nc3 {[%clk 0:02:59.4]}
2... e6 {[%clk 0:02:55]} 3. Bf4 {[%clk 0:02:59]} 3... Bb4 {[%clk 0:02:49.2]} 4.
Qd3 {[%clk 0:02:57.1]} 4... O-O {[%clk 0:02:45.3]} 5. O-O-O {[%clk 0:02:55.5]}
5... d5 {[%clk 0:02:41.9]} 6. a3 {[%clk 0:02:43.4]} 6... Be7 {[%clk 0:02:33]} 7.
e4 {[%clk 0:02:39.9]} 7... c5 {[%clk 0:02:13.7]} 8. dxc5 {[%clk 0:02:36.2]} 8...
Nbd7 {[%clk 0:01:51]} 9. exd5 {[%clk 0:02:14.2]} 9... Nxc5 {[%clk 0:01:49.9]}
10. Qd4 {[%clk 0:01:53.6]} 10... exd5 {[%clk 0:01:45.9]} 11. Nxd5 {[%clk
0:01:46.3]} 11... Nxd5 {[%clk 0:01:46.8]} 12. Qxd5 {[%clk 0:01:46.7]} 12... Qb6
{[%clk 0:01:46.4]} 13. Nf3 {[%clk 0:01:09]} 13... Be6 {[%clk 0:01:44.4]} 14. Qh5
{[%clk 0:01:08.9]} 14... Bf6 {[%clk 0:01:27.9]} 15. Be5 {[%clk 0:01:06.1]} 15...
g6 {[%clk 0:01:19.7]} 16. Qh6 {[%clk 0:00:59.8]} 16... Bxe5 {[%clk 0:01:19.7]}
17. Nxe5 {[%clk 0:00:59.9]} 17... Na4 {[%clk 0:01:18.5]} 18. Nd3 {[%clk
0:00:47.9]} 18... Bf5 {[%clk 0:01:13.3]} 19. Qe3 {[%clk 0:00:44.4]} 19... Qa5
{[%clk 0:01:01.3]} 20. Qe5 {[%clk 0:00:39.2]} 20... Qb6 {[%clk 0:00:54.1]} 21.
Qe3 {[%clk 0:00:38.4]} 21... Qxe3+ {[%clk 0:00:32.6]} 22. fxe3 {[%clk
0:00:38.3]} 22... Rfe8 {[%clk 0:00:33.5]} 23. Re1 {[%clk 0:00:30]} 23... Re7
{[%clk 0:00:33.6]} 24. h3 {[%clk 0:00:22.9]} 24... h5 {[%clk 0:00:25.6]} 25. g4
{[%clk 0:00:12.1]} 25... hxg4 {[%clk 0:00:25]} 26. hxg4 {[%clk 0:00:13]} 26...
Bxg4 {[%clk 0:00:25.5]} 27. Bh3 {[%clk 0:00:13.3]} 27... Bh5 {[%clk 0:00:20.9]}
28. e4 {[%clk 0:00:09.8]} 28... Bf3 {[%clk 0:00:17.6]} 29. Rhf1 {[%clk 0:00:06]}
29... Bxe4 {[%clk 0:00:17.9]} 30. Bg2 {[%clk 0:00:03.6]} 30... Rae8 {[%clk
0:00:17.4]} 31. Bxe4 {[%clk 0:00:02.3]} 31... Rxe4 {[%clk 0:00:18.3]} 32. Rxe4
{[%clk 0:00:02.5]} 32... Rxe4 {[%clk 0:00:19.2]} 33. Kd2 {[%clk 0:00:01.7]}
33... Kg7 {[%clk 0:00:19]} 34. b3 {[%clk 0:00:02.3]} 34... Nb6 {[%clk
0:00:19.4]} 35. Nc5 {[%clk 0:00:02.5]} 35... Re7 {[%clk 0:00:19.7]} 36. Kd3
{[%clk 0:00:02.9]} 36... Nd5 {[%clk 0:00:20]} 37. c4 {[%clk 0:00:03.2]} 37...
Nf6 {[%clk 0:00:19.9]} 38. Kd4 {[%clk 0:00:03.6]} 38... b6 {[%clk 0:00:19.7]}
39. Nd3 {[%clk 0:00:02.9]} 39... Rd7+ {[%clk 0:00:20.2]} 40. Kc3 {[%clk
0:00:03]} 40... Ne4+ {[%clk 0:00:20.5]} 41. Kc2 {[%clk 0:00:03.6]} 41... f5
{[%clk 0:00:21]} 42. b4 {[%clk 0:00:04.2]} 42... Kf6 {[%clk 0:00:21.2]} 43. Rh1
{[%clk 0:00:03.5]} 43... Rxd3 {[%clk 0:00:19.4]} 0-1

[Event "*** Titled Tuesday Blitz"]
[Site "Chess.com"]
[Date "2021.02.09"]
[Round "4"]
[White "bocah_sakit"]
[Black "FGHSMN"]
[Result "1-0"]
[WhiteElo "2843"]
[BlackElo "2628"]
[TimeControl "180+1"]
[EndTime "10:39:44 PST"]
[Termination "bocah_sakit won by resignation"]

1. e4 {[%clk 0:03:00.9]} 1... c5 {[%clk 0:02:58.5]} 2. Nf3 {[%clk 0:03:01.4]}
2... e6 {[%clk 0:02:57.6]} 3. d4 {[%clk 0:03:02]} 3... cxd4 {[%clk 0:02:58.5]}
4. Nxd4 {[%clk 0:03:02.8]} 4... a6 {[%clk 0:02:58.5]} 5. Bd3 {[%clk 0:03:02.3]}
5... Nf6 {[%clk 0:02:58]} 6. O-O {[%clk 0:03:01.8]} 6... Qc7 {[%clk 0:02:57.1]}
7. Qe2 {[%clk 0:03:01.2]} 7... d6 {[%clk 0:02:54.5]} 8. Nc3 {[%clk 0:02:59.5]}
8... Be7 {[%clk 0:02:53.2]} 9. Bd2 {[%clk 0:02:57.5]} 9... O-O {[%clk
0:02:52.3]} 10. Kh1 {[%clk 0:02:55.7]} 10... Nbd7 {[%clk 0:02:51.8]} 11. f4
{[%clk 0:02:55]} 11... b5 {[%clk 0:02:46]} 12. Rae1 {[%clk 0:02:46.5]} 12... b4
{[%clk 0:01:58.7]} 13. Nd1 {[%clk 0:02:42.6]} 13... Qb6 {[%clk 0:01:21.3]} 14.
c3 {[%clk 0:02:38.2]} 14... Bb7 {[%clk 0:01:20.1]} 15. e5 {[%clk 0:02:35.8]}
15... Nd5 {[%clk 0:01:17.5]} 16. Ne3 {[%clk 0:02:27.2]} 16... bxc3 {[%clk
0:01:14.1]} 17. bxc3 {[%clk 0:02:25.3]} 17... Rac8 {[%clk 0:01:01.1]} 18. Nc4
{[%clk 0:02:18.7]} 18... Qc7 {[%clk 0:00:59]} 19. exd6 {[%clk 0:02:18.8]} 19...
Bxd6 {[%clk 0:00:59.9]} 20. Nxe6 {[%clk 0:02:14.1]} 20... fxe6 {[%clk
0:00:49.9]} 21. Qxe6+ {[%clk 0:02:15]} 21... Kh8 {[%clk 0:00:50.3]} 22. Qxd6
{[%clk 0:02:14.7]} 22... Nc5 {[%clk 0:00:39.4]} 23. Bc2 {[%clk 0:02:10.2]} 23...
Qf7 {[%clk 0:00:33]} 24. Ne5 {[%clk 0:02:03.2]} 24... Qh5 {[%clk 0:00:32.5]} 25.
Nf3 {[%clk 0:02:00.3]} 25... Qg4 {[%clk 0:00:26.1]} 26. h3 {[%clk 0:01:56.9]}
26... Qg3 {[%clk 0:00:22.9]} 27. Re5 {[%clk 0:01:54.8]} 27... Nxf4 {[%clk
0:00:19]} 28. Rg5 {[%clk 0:01:50.3]} 28... Qxg5 {[%clk 0:00:16.2]} 29. Nxg5
{[%clk 0:01:49.3]} 29... Bxg2+ {[%clk 0:00:17.1]} 30. Kh2 {[%clk 0:01:43]} 30...
Bxf1 {[%clk 0:00:16.9]} 31. Bxf4 {[%clk 0:01:43.3]} 31... Nb7 {[%clk 0:00:11.3]}
32. Qe5 {[%clk 0:01:39.4]} 32... Rce8 {[%clk 0:00:10.7]} 33. Ne6 {[%clk
0:01:12.2]} 33... Rf6 {[%clk 0:00:09.4]} 34. Bb3 {[%clk 0:01:12]} 34... Nd8
{[%clk 0:00:09.2]} 35. Bg5 {[%clk 0:01:04.6]} 35... Rfxe6 {[%clk 0:00:09.1]} 36.
Bxe6 {[%clk 0:01:04.3]} 36... Nxe6 {[%clk 0:00:10]} 37. Be3 {[%clk 0:01:03.3]}
37... Bc4 {[%clk 0:00:09.7]} 38. a3 {[%clk 0:01:02.3]} 38... Kg8 {[%clk
0:00:08]} 39. Bd4 {[%clk 0:01:01.7]} 39... Kf7 {[%clk 0:00:07.3]} 40. Qf5+
{[%clk 0:01:02.1]} 40... Kg8 {[%clk 0:00:07.7]} 41. Be5 {[%clk 0:01:02.5]} 41...
g6 {[%clk 0:00:07.2]} 42. Qe4 {[%clk 0:01:02.1]} 42... Bb5 {[%clk 0:00:06.3]}
43. Qd5 {[%clk 0:01:02]} 43... Kf7 {[%clk 0:00:05]} 44. c4 {[%clk 0:01:01.5]}
44... Ba4 {[%clk 0:00:05.4]} 45. Qb7+ {[%clk 0:01:00.4]} 45... Re7 {[%clk
0:00:06.1]} 46. Qxa6 {[%clk 0:01:00.9]} 46... Nc5 {[%clk 0:00:05.8]} 47. Qd6
{[%clk 0:01:00]} 47... Nb7 {[%clk 0:00:04.9]} 48. Qd5+ {[%clk 0:01:00.2]} 48...
Ke8 {[%clk 0:00:05.6]} 49. c5 {[%clk 0:01:00.4]} 49... Nd8 {[%clk 0:00:03.2]}
50. Bf6 {[%clk 0:00:54.7]} 50... Re2+ {[%clk 0:00:03.3]} 51. Kg3 {[%clk
0:00:55.2]} 51... Ne6 {[%clk 0:00:03.1]} 52. Qd6 {[%clk 0:00:53.6]} 52... Kf7
{[%clk 0:00:03.7]} 53. Qe7+ {[%clk 0:00:51.9]} 53... Kg8 {[%clk 0:00:04.1]} 54.
Qa7 {[%clk 0:00:49.3]} 54... Re3+ {[%clk 0:00:03]} 55. Kf2 {[%clk 0:00:48.8]}
55... Re4 {[%clk 0:00:03.9]} 56. Qa8+ {[%clk 0:00:47.7]} 56... Kf7 {[%clk
0:00:03.1]} 57. Qxe4 {[%clk 0:00:48.6]} 1-0

[Event "*** Titled Tuesday Blitz"]
[Site "Chess.com"]
[Date "2021.02.09"]
[Round "4"]
[White "amintabatabaei"]
[Black "francyIM"]
[Result "0-1"]
[WhiteElo "2918"]
[BlackElo "2571"]
[TimeControl "180+1"]
[EndTime "10:39:44 PST"]
[Termination "francyIM won on time"]

1. d4 {[%clk 0:03:00.9]} 1... Nf6 {[%clk 0:02:51.6]} 2. Nf3 {[%clk 0:03:00.2]}
2... d6 {[%clk 0:02:50.5]} 3. h3 {[%clk 0:02:58.5]} 3... Bf5 {[%clk 0:02:45.9]}
4. Bf4 {[%clk 0:02:55.4]} 4... Nbd7 {[%clk 0:02:42.7]} 5. e3 {[%clk 0:02:55.7]}
5... h6 {[%clk 0:02:41.5]} 6. Bd3 {[%clk 0:02:55.6]} 6... Bxd3 {[%clk
0:02:40.4]} 7. cxd3 {[%clk 0:02:55.3]} 7... c6 {[%clk 0:02:39.8]} 8. Nc3 {[%clk
0:02:55]} 8... g6 {[%clk 0:02:38.1]} 9. O-O {[%clk 0:02:50.7]} 9... Bg7 {[%clk
0:02:37.8]} 10. a4 {[%clk 0:02:43.5]} 10... a5 {[%clk 0:02:30.3]} 11. Qb3 {[%clk
0:02:39]} 11... Qb6 {[%clk 0:02:27.5]} 12. Qxb6 {[%clk 0:02:36]} 12... Nxb6
{[%clk 0:02:28.4]} 13. e4 {[%clk 0:02:36.9]} 13... Nfd7 {[%clk 0:02:15.1]} 14.
Be3 {[%clk 0:02:29]} 14... O-O {[%clk 0:02:11]} 15. Nd2 {[%clk 0:02:22.1]} 15...
Rfc8 {[%clk 0:02:08.6]} 16. f4 {[%clk 0:02:06.1]} 16... c5 {[%clk 0:02:05.8]}
17. d5 {[%clk 0:01:56.3]} 17... f5 {[%clk 0:01:52.9]} 18. exf5 {[%clk
0:00:59.9]} 18... gxf5 {[%clk 0:01:51.7]} 19. Nc4 {[%clk 0:01:00]} 19... Bxc3
{[%clk 0:01:47.8]} 20. bxc3 {[%clk 0:00:54.6]} 20... Nxd5 {[%clk 0:00:58.7]} 21.
Bd2 {[%clk 0:00:54]} 21... Kf7 {[%clk 0:00:58]} 22. Rab1 {[%clk 0:00:53.4]}
22... b6 {[%clk 0:00:57.5]} 23. Kh2 {[%clk 0:00:50.9]} 23... Rg8 {[%clk
0:00:56]} 24. Na3 {[%clk 0:00:50.6]} 24... h5 {[%clk 0:00:53.6]} 25. Rf2 {[%clk
0:00:41.4]} 25... Rg6 {[%clk 0:00:51.9]} 26. Re1 {[%clk 0:00:40.8]} 26... Rag8
{[%clk 0:00:51.4]} 27. Nb5 {[%clk 0:00:40.7]} 27... Re6 {[%clk 0:00:36.5]} 28.
Rd1 {[%clk 0:00:30.2]} 28... h4 {[%clk 0:00:34.4]} 29. Bc1 {[%clk 0:00:29.4]}
29... Rg3 {[%clk 0:00:33.5]} 30. Kh1 {[%clk 0:00:16]} 30... N7f6 {[%clk
0:00:32.1]} 31. Kh2 {[%clk 0:00:09.4]} 31... c4 {[%clk 0:00:30]} 32. dxc4 {[%clk
0:00:06.6]} 32... Nxc3 {[%clk 0:00:30.1]} 33. Rdf1 {[%clk 0:00:06.3]} 33... Nxb5
{[%clk 0:00:26.9]} 34. cxb5 {[%clk 0:00:03.9]} 34... Re4 {[%clk 0:00:26.8]} 35.
Rc2 {[%clk 0:00:04.2]} 35... Rxa4 {[%clk 0:00:26.6]} 36. Bb2 {[%clk 0:00:01.3]}
36... Nd5 {[%clk 0:00:24.5]} 37. Rff2 {[%clk 0:00:01.3]} 37... Rb4 {[%clk
0:00:22.4]} 38. Bc1 {[%clk 0:00:01.7]} 38... Rxb5 {[%clk 0:00:22.2]} 39. Rc8
{[%clk 0:00:02.1]} 39... Rc5 {[%clk 0:00:21.9]} 40. Rc2 {[%clk 0:00:01.3]} 40...
Rxc8 {[%clk 0:00:20.4]} 41. Rxc8 {[%clk 0:00:01.1]} 41... Rc3 {[%clk 0:00:21.3]}
0-1

[Event "*** Titled Tuesday Blitz"]
[Site "Chess.com"]
[Date "2021.02.09"]
[Round "4"]
[White "tdf98pantani"]
[Black "Cambek64"]
[Result "1-0"]
[WhiteElo "2739"]
[BlackElo "2344"]
[TimeControl "180+1"]
[EndTime "10:39:44 PST"]
[Termination "tdf98pantani won by resignation"]

1. e4 {[%clk 0:01:20.2]} 1... e6 {[%clk 0:02:56.6]} 2. d4 {[%clk 0:01:18.9]}
2... d5 {[%clk 0:02:56.7]} 3. Nd2 {[%clk 0:01:18.9]} 3... c5 {[%clk 0:02:51.2]}
4. exd5 {[%clk 0:01:18.5]} 4... Qxd5 {[%clk 0:02:51.7]} 5. Ngf3 {[%clk 0:01:18]}
5... cxd4 {[%clk 0:02:51.1]} 6. Bc4 {[%clk 0:01:17.9]} 6... Qd7 {[%clk
0:02:51.1]} 7. O-O {[%clk 0:01:17.9]} 7... Nc6 {[%clk 0:02:51.6]} 8. Nb3 {[%clk
0:01:17.7]} 8... Nf6 {[%clk 0:02:51.3]} 9. Re1 {[%clk 0:01:17.1]} 9... Be7
{[%clk 0:02:33.7]} 10. Nbxd4 {[%clk 0:01:16.4]} 10... Nxd4 {[%clk 0:02:27.3]}
11. Nxd4 {[%clk 0:01:16]} 11... a6 {[%clk 0:02:26.2]} 12. a4 {[%clk 0:01:14.7]}
12... Qc7 {[%clk 0:02:25.8]} 13. Qe2 {[%clk 0:01:13.6]} 13... O-O {[%clk
0:02:24.8]} 14. Bg5 {[%clk 0:01:12.6]} 14... Qc5 {[%clk 0:02:17.9]} 15. Be3
{[%clk 0:01:11.1]} 15... Qc7 {[%clk 0:02:17.3]} 16. Bd3 {[%clk 0:01:06]} 16...
Bd6 {[%clk 0:02:16.2]} 17. h3 {[%clk 0:01:04.9]} 17... Nd5 {[%clk 0:02:15.2]}
18. Bd2 {[%clk 0:01:04.6]} 18... Nf4 {[%clk 0:01:59.1]} 19. Bxf4 {[%clk
0:01:04.2]} 19... Bxf4 {[%clk 0:01:59.2]} 20. Qf3 {[%clk 0:01:00.2]} 20... g6
{[%clk 0:01:54.8]} 21. c3 {[%clk 0:00:58.6]} 21... Be5 {[%clk 0:01:52.8]} 22.
Re4 {[%clk 0:00:56]} 22... Bg7 {[%clk 0:01:52]} 23. Nc2 {[%clk 0:00:41.8]} 23...
e5 {[%clk 0:01:48.4]} 24. Rc4 {[%clk 0:00:41.3]} 24... Qe7 {[%clk 0:01:47.5]}
25. Re1 {[%clk 0:00:40.4]} 25... f5 {[%clk 0:01:47.2]} 26. Rb4 {[%clk 0:00:33]}
26... e4 {[%clk 0:01:40.4]} 27. Bc4+ {[%clk 0:00:32.8]} 27... Be6 {[%clk
0:01:30.2]} 28. Bxe6+ {[%clk 0:00:31.6]} 28... Qxe6 {[%clk 0:01:28]} 29. Qe2
{[%clk 0:00:30.8]} 29... Qc6 {[%clk 0:01:18.1]} 30. Nd4 {[%clk 0:00:29.6]} 30...
Qd5 {[%clk 0:01:15.1]} 31. Qc2 {[%clk 0:00:17.1]} 31... Rac8 {[%clk 0:01:12.8]}
32. Rd1 {[%clk 0:00:16.6]} 32... Rfd8 {[%clk 0:01:10.7]} 33. Rd2 {[%clk
0:00:14.6]} 33... Kh8 {[%clk 0:00:58.7]} 34. Nb3 {[%clk 0:00:13.9]} 34... Qf7
{[%clk 0:00:55.6]} 35. Qd1 {[%clk 0:00:08.1]} 35... Bf6 {[%clk 0:00:53.9]} 36.
Rb6 {[%clk 0:00:07.1]} 36... Rxd2 {[%clk 0:00:52.6]} 37. Qxd2 {[%clk 0:00:07.1]}
37... Rd8 {[%clk 0:00:53.1]} 38. Qe2 {[%clk 0:00:06.6]} 38... Rd1+ {[%clk
0:00:51.7]} 39. Qxd1 {[%clk 0:00:06.2]} 39... Qc7 {[%clk 0:00:51.7]} 40. Rd6
{[%clk 0:00:05.9]} 40... Be7 {[%clk 0:00:46.9]} 41. Rd7 {[%clk 0:00:05.8]} 41...
Qe5 {[%clk 0:00:46.7]} 42. Qd4 {[%clk 0:00:05.8]} 42... Qxd4 {[%clk 0:00:47.1]}
43. Nxd4 {[%clk 0:00:05.8]} 43... Bf6 {[%clk 0:00:47]} 44. Ne6 {[%clk
0:00:05.8]} 44... Kg8 {[%clk 0:00:44.3]} 45. Rxb7 {[%clk 0:00:05.7]} 45... g5
{[%clk 0:00:42.3]} 46. c4 {[%clk 0:00:05.3]} 46... f4 {[%clk 0:00:42.3]} 47. Kf1
{[%clk 0:00:05.5]} 47... e3 {[%clk 0:00:43.1]} 48. fxe3 {[%clk 0:00:05.5]} 48...
fxe3 {[%clk 0:00:43.8]} 49. Ke2 {[%clk 0:00:05.8]} 1-0

[Event "*** Titled Tuesday Blitz"]
[Site "Chess.com"]
[Date "2021.02.09"]
[Round "4"]
[White "Kostukov_Alex"]
[Black "Spartakus1975"]
[Result "0-1"]
[WhiteElo "2360"]
[BlackElo "2593"]
[TimeControl "180+1"]
[EndTime "10:39:46 PST"]
[Termination "Spartakus1975 won on time"]

1. g3 {[%clk 0:03:00.2]} 1... d5 {[%clk 0:02:59]} 2. Bg2 {[%clk 0:03:00.5]} 2...
c6 {[%clk 0:02:59.3]} 3. d3 {[%clk 0:03:01.1]} 3... Nf6 {[%clk 0:02:57.7]} 4. e4
{[%clk 0:03:01.5]} 4... dxe4 {[%clk 0:02:56.7]} 5. dxe4 {[%clk 0:03:02]} 5...
Qxd1+ {[%clk 0:02:56.8]} 6. Kxd1 {[%clk 0:03:02.9]} 6... e5 {[%clk 0:02:54.9]}
7. f3 {[%clk 0:03:03.2]} 7... Bc5 {[%clk 0:02:50.8]} 8. Nd2 {[%clk 0:03:03.2]}
8... Be6 {[%clk 0:02:48.8]} 9. Bh3 {[%clk 0:03:03.5]} 9... Ke7 {[%clk
0:02:36.9]} 10. Bxe6 {[%clk 0:03:02.5]} 10... Kxe6 {[%clk 0:02:37.2]} 11. Nh3
{[%clk 0:03:03.1]} 11... Nbd7 {[%clk 0:02:32.8]} 12. a4 {[%clk 0:03:01.3]} 12...
a5 {[%clk 0:02:31.2]} 13. Ke2 {[%clk 0:03:00.1]} 13... Rhd8 {[%clk 0:02:28]} 14.
Nc4 {[%clk 0:02:56.6]} 14... h6 {[%clk 0:02:21.9]} 15. Nf2 {[%clk 0:02:53]}
15... Bxf2 {[%clk 0:02:20.8]} 16. Kxf2 {[%clk 0:02:52.7]} 16... Nc5 {[%clk
0:02:09.1]} 17. Be3 {[%clk 0:02:50.6]} 17... Na6 {[%clk 0:02:05.8]} 18. Nxa5
{[%clk 0:02:41.4]} 18... Rd7 {[%clk 0:01:58.8]} 19. Nc4 {[%clk 0:02:16.2]} 19...
Rad8 {[%clk 0:01:46.7]} 20. Ke2 {[%clk 0:02:06.8]} 20... Nb4 {[%clk 0:01:42.5]}
21. c3 {[%clk 0:02:02]} 21... Nc2 {[%clk 0:01:40]} 22. Rad1 {[%clk 0:01:59.2]}
22... Nxe3 {[%clk 0:01:39.4]} 23. Rxd7 {[%clk 0:01:38.7]} 23... Nxd7 {[%clk
0:01:38.2]} 24. Kxe3 {[%clk 0:01:28.8]} 24... Nc5 {[%clk 0:01:36.4]} 25. Ra1
{[%clk 0:01:25.2]} 25... Ra8 {[%clk 0:01:31.5]} 26. a5 {[%clk 0:01:21.3]} 26...
Rd8 {[%clk 0:01:08.6]} 27. Ke2 {[%clk 0:01:14.4]} 27... Nb3 {[%clk 0:01:05.8]}
28. Rd1 {[%clk 0:01:09.9]} 28... Ra8 {[%clk 0:01:05.4]} 29. f4 {[%clk
0:00:50.5]} 29... exf4 {[%clk 0:01:03.5]} 30. gxf4 {[%clk 0:00:50.9]} 30... Ra6
{[%clk 0:00:54.6]} 31. f5+ {[%clk 0:00:38.3]} 31... Ke7 {[%clk 0:00:54]} 32. Rg1
{[%clk 0:00:25.2]} 32... Kf8 {[%clk 0:00:50.3]} 33. e5 {[%clk 0:00:20.2]} 33...
Nxa5 {[%clk 0:00:48.8]} 34. Nd6 {[%clk 0:00:18.2]} 34... c5 {[%clk 0:00:46.1]}
35. Ke3 {[%clk 0:00:15.4]} 35... Nc6 {[%clk 0:00:44.7]} 36. Ke4 {[%clk 0:00:14]}
36... Ne7 {[%clk 0:00:39.5]} 37. Nxb7 {[%clk 0:00:10.7]} 37... Ra4+ {[%clk
0:00:39.5]} 38. Kd3 {[%clk 0:00:09]} 38... Nxf5 {[%clk 0:00:39.6]} 39. Nxc5
{[%clk 0:00:08.8]} 39... Rh4 {[%clk 0:00:38.9]} 40. Rg2 {[%clk 0:00:08.1]} 40...
g5 {[%clk 0:00:34.6]} 41. b4 {[%clk 0:00:07.1]} 41... Rh3+ {[%clk 0:00:35.1]}
42. Kd2 {[%clk 0:00:06.8]} 42... Ne3 {[%clk 0:00:34.9]} 43. Re2 {[%clk
0:00:05.9]} 43... Nc4+ {[%clk 0:00:34.7]} 44. Kc2 {[%clk 0:00:05.7]} 44... g4
{[%clk 0:00:34]} 45. b5 {[%clk 0:00:05.8]} 45... h5 {[%clk 0:00:33.9]} 46. Kb3
{[%clk 0:00:03.6]} 46... Nb6 {[%clk 0:00:34]} 47. Kb4 {[%clk 0:00:03.1]} 47...
Nd5+ {[%clk 0:00:32.7]} 48. Ka5 {[%clk 0:00:03.2]} 48... Rxc3 {[%clk 0:00:27.1]}
0-1